[Event "Early-Titled-Tuesday-Blitz-November-28-2023"]
[Site "Chess.com"]
[Date "2023.11.28"]
[Round "4"]
[White "GKARU"]
[Black "Aygehovit1992"]
[Result "0-1"]
[WhiteElo "2522"]
[BlackElo "2725"]
[TimeControl "180+1"]
[EndTime "8:37:35 PST"]
[Termination "Aygehovit1992 won on time"]

1. d4 {[%clk 0:02:56.7]} 1... Nf6 {[%clk 0:02:59.3]} 2. Nf3 {[%clk 0:02:46.5]}
2... g6 {[%clk 0:02:58.5]} 3. Nc3 {[%clk 0:02:45.9]} 3... d5 {[%clk 0:02:58.2]}
4. Bf4 {[%clk 0:02:45.1]} 4... Bg7 {[%clk 0:02:58.8]} 5. e3 {[%clk 0:02:45.5]}
5... O-O {[%clk 0:02:59]} 6. Nb5 {[%clk 0:02:46.2]} 6... Na6 {[%clk 0:02:59]} 7.
c4 {[%clk 0:02:46.9]} 7... c5 {[%clk 0:02:56.3]} 8. Nc3 {[%clk 0:02:45.1]} 8...
Bg4 {[%clk 0:02:50.2]} 9. dxc5 {[%clk 0:02:34.7]} 9... Nxc5 {[%clk 0:02:48.7]}
10. cxd5 {[%clk 0:02:34.8]} 10... Qa5 {[%clk 0:02:43.2]} 11. Qd2 {[%clk
0:02:24.4]} 11... Rfd8 {[%clk 0:02:43.1]} 12. e4 {[%clk 0:02:05.3]} 12... Nb3
{[%clk 0:02:32.3]} 13. axb3 {[%clk 0:01:36.3]} 13... Qxa1+ {[%clk 0:02:31.7]}
14. Qc1 {[%clk 0:01:36.4]} 14... Qxc1+ {[%clk 0:02:29.1]} 15. Bxc1 {[%clk
0:01:37.3]} 15... Rac8 {[%clk 0:02:27.2]} 16. Bd3 {[%clk 0:01:29.4]} 16... e6
{[%clk 0:02:15]} 17. Bc4 {[%clk 0:01:09.8]} 17... Nxe4 {[%clk 0:02:11.1]} 18.
Nxe4 {[%clk 0:01:07]} 18... exd5 {[%clk 0:02:11.5]} 19. Bg5 {[%clk 0:01:02.8]}
19... Re8 {[%clk 0:02:11.5]} 20. O-O {[%clk 0:00:48.6]} 20... dxe4 {[%clk
0:02:07]} 21. Nd2 {[%clk 0:00:41.7]} 21... Bxb2 {[%clk 0:02:06.7]} 22. Re1
{[%clk 0:00:37.1]} 22... Bf5 {[%clk 0:02:01.2]} 23. h3 {[%clk 0:00:31.1]} 23...
h5 {[%clk 0:02:01]} 24. Bd5 {[%clk 0:00:22.7]} 24... Bc3 {[%clk 0:01:57.9]} 25.
Bxb7 {[%clk 0:00:20.4]} 25... Rcd8 {[%clk 0:01:56.9]} 26. Re2 {[%clk 0:00:18.4]}
26... e3 {[%clk 0:01:54.5]} 27. Bxe3 {[%clk 0:00:12.1]} 27... Rxe3 {[%clk
0:01:50.3]} 28. Rxe3 {[%clk 0:00:10.5]} 28... Bxd2 {[%clk 0:01:49.4]} 29. Re7
{[%clk 0:00:11.4]} 29... Bb4 {[%clk 0:01:44.9]} 30. Re2 {[%clk 0:00:05.6]} 30...
Rd2 {[%clk 0:01:39.1]} 0-1

[Event "Early-Titled-Tuesday-Blitz-November-28-2023"]
[Site "Chess.com"]
[Date "2023.11.28"]
[Round "4"]
[White "Msb2"]
[Black "bascheyaro"]
[Result "1-0"]
[WhiteElo "3047"]
[BlackElo "2839"]
[TimeControl "180+1"]
[EndTime "8:37:41 PST"]
[Termination "Msb2 won by checkmate"]

1. d4 {[%clk 0:03:00.9]} 1... d5 {[%clk 0:03:00]} 2. c4 {[%clk 0:03:00.1]} 2...
c6 {[%clk 0:03:00.3]} 3. Nf3 {[%clk 0:03:00.6]} 3... Nf6 {[%clk 0:03:00.5]} 4.
Nc3 {[%clk 0:03:01.1]} 4... a6 {[%clk 0:03:00.5]} 5. Qc2 {[%clk 0:03:00.7]} 5...
g6 {[%clk 0:03:00.3]} 6. cxd5 {[%clk 0:02:59.1]} 6... cxd5 {[%clk 0:03:00.4]} 7.
Bg5 {[%clk 0:02:59.8]} 7... Bg7 {[%clk 0:02:59.2]} 8. Bxf6 {[%clk 0:03:00.1]}
8... Bxf6 {[%clk 0:02:57.6]} 9. Nxd5 {[%clk 0:02:59.3]} 9... O-O {[%clk
0:02:42.7]} 10. Nxf6+ {[%clk 0:02:56.1]} 10... exf6 {[%clk 0:02:43.6]} 11. e3
{[%clk 0:02:55.9]} 11... Bf5 {[%clk 0:02:40.1]} 12. Bd3 {[%clk 0:02:52.2]} 12...
Bxd3 {[%clk 0:02:32.1]} 13. Qxd3 {[%clk 0:02:53.1]} 13... Nc6 {[%clk 0:02:32.7]}
14. O-O {[%clk 0:02:52.9]} 14... Ne5 {[%clk 0:02:30.5]} 15. Qe4 {[%clk
0:02:50.1]} 15... Nxf3+ {[%clk 0:02:29.8]} 16. Qxf3 {[%clk 0:02:51]} 16... Qb6
{[%clk 0:02:25.8]} 17. b3 {[%clk 0:02:49.2]} 17... f5 {[%clk 0:02:24.9]} 18.
Rfc1 {[%clk 0:02:48.2]} 18... Rac8 {[%clk 0:02:22.7]} 19. h3 {[%clk 0:02:44.8]}
19... Qb4 {[%clk 0:02:21]} 20. Qd1 {[%clk 0:02:32.7]} 20... Qa3 {[%clk 0:02:12]}
21. Rc2 {[%clk 0:02:29.7]} 21... b5 {[%clk 0:02:03.6]} 22. Rac1 {[%clk
0:02:28.5]} 22... Rcd8 {[%clk 0:02:04.2]} 23. Qf3 {[%clk 0:02:26.3]} 23... a5
{[%clk 0:01:53.4]} 24. h4 {[%clk 0:02:22.2]} 24... h5 {[%clk 0:01:52.6]} 25. Qg3
{[%clk 0:02:18]} 25... Rfe8 {[%clk 0:01:36.8]} 26. Rc6 {[%clk 0:02:08.8]} 26...
Kg7 {[%clk 0:01:31.2]} 27. R1c5 {[%clk 0:01:45.5]} 27... Qxa2 {[%clk 0:01:20.5]}
28. Rxg6+ {[%clk 0:01:33.2]} 28... fxg6 {[%clk 0:00:09.4]} 29. Rc7+ {[%clk
0:01:33.1]} 29... Kf6 {[%clk 0:00:04.7]} 30. Qg5+ {[%clk 0:01:30.7]} 30... Ke6
{[%clk 0:00:05.2]} 31. Qxg6+ {[%clk 0:01:29.8]} 31... Kd5 {[%clk 0:00:05.7]} 32.
Qc6# {[%clk 0:01:30.7]} 1-0

[Event "Early-Titled-Tuesday-Blitz-November-28-2023"]
[Site "Chess.com"]
[Date "2023.11.28"]
[Round "4"]
[White "The_Straightforward_Rook"]
[Black "Meri-Arabidze"]
[Result "0-1"]
[WhiteElo "2473"]
[BlackElo "2690"]
[TimeControl "180+1"]
[EndTime "8:37:48 PST"]
[Termination "Meri-Arabidze won by resignation"]

1. e4 {[%clk 0:03:00.9]} 1... c5 {[%clk 0:02:56.6]} 2. c3 {[%clk 0:03:00.6]}
2... d5 {[%clk 0:02:53.9]} 3. exd5 {[%clk 0:03:01.5]} 3... Qxd5 {[%clk
0:02:54.4]} 4. Nf3 {[%clk 0:03:02.1]} 4... Nc6 {[%clk 0:02:52.2]} 5. Na3 {[%clk
0:03:02.1]} 5... Qd8 {[%clk 0:02:50.9]} 6. Be2 {[%clk 0:02:57.3]} 6... Nf6
{[%clk 0:02:50.5]} 7. O-O {[%clk 0:02:57.2]} 7... Bg4 {[%clk 0:02:46.1]} 8. Nc4
{[%clk 0:02:47.8]} 8... Qc7 {[%clk 0:02:40.2]} 9. Qa4 {[%clk 0:02:38.5]} 9...
Bd7 {[%clk 0:02:34.8]} 10. Qb3 {[%clk 0:02:34]} 10... e6 {[%clk 0:02:32.7]} 11.
d3 {[%clk 0:02:30.4]} 11... Be7 {[%clk 0:02:31.3]} 12. a4 {[%clk 0:02:28.6]}
12... O-O {[%clk 0:02:31]} 13. h3 {[%clk 0:02:24.9]} 13... b6 {[%clk 0:02:30.6]}
14. Bg5 {[%clk 0:02:24.1]} 14... h6 {[%clk 0:02:29.8]} 15. Bh4 {[%clk
0:02:24.1]} 15... Nd5 {[%clk 0:02:29.3]} 16. Bg3 {[%clk 0:02:22.7]} 16... Nf4
{[%clk 0:02:27.1]} 17. Bd1 {[%clk 0:02:16.8]} 17... Rad8 {[%clk 0:01:57.7]} 18.
Qc2 {[%clk 0:02:16.8]} 18... Bc8 {[%clk 0:01:48.1]} 19. Nfe5 {[%clk 0:02:16]}
19... Nxe5 {[%clk 0:01:43.2]} 20. Bxf4 {[%clk 0:02:16.3]} 20... Nf3+ {[%clk
0:01:40.6]} 21. Bxf3 {[%clk 0:02:14.3]} 21... Qxf4 {[%clk 0:01:41.5]} 22. Qe2
{[%clk 0:02:10.8]} 22... Ba6 {[%clk 0:01:36]} 23. g3 {[%clk 0:02:06.7]} 23...
Qf5 {[%clk 0:01:32.1]} 24. Be4 {[%clk 0:01:57.6]} 24... Qxh3 {[%clk 0:01:31.6]}
25. Ne5 {[%clk 0:01:54.9]} 25... Bf6 {[%clk 0:01:20.4]} 26. Nc6 {[%clk
0:01:52.8]} 26... Rd7 {[%clk 0:01:20.7]} 27. b4 {[%clk 0:01:49.3]} 27... cxb4
{[%clk 0:01:19]} 28. cxb4 {[%clk 0:01:50.2]} 28... Bxa1 {[%clk 0:01:18.3]} 29.
Rxa1 {[%clk 0:01:49.1]} 29... Bb7 {[%clk 0:01:12.6]} 30. a5 {[%clk 0:01:48.3]}
30... Bxc6 {[%clk 0:01:11.1]} 31. Bxc6 {[%clk 0:01:47.9]} 31... Rc7 {[%clk
0:01:11.7]} 32. Be4 {[%clk 0:01:42.1]} 32... bxa5 {[%clk 0:01:09.5]} 33. bxa5
{[%clk 0:01:39.9]} 33... Rfc8 {[%clk 0:01:08.9]} 34. Qb2 {[%clk 0:01:35.9]}
34... h5 {[%clk 0:00:58.4]} 35. Bb7 {[%clk 0:01:32.3]} 35... Rd8 {[%clk
0:00:50]} 36. a6 {[%clk 0:01:23.5]} 36... h4 {[%clk 0:00:48.9]} 37. Bg2 {[%clk
0:01:21.9]} 37... Qg4 {[%clk 0:00:48.4]} 38. Qe5 {[%clk 0:01:19.8]} 38... Rcd7
{[%clk 0:00:47.3]} 39. gxh4 {[%clk 0:01:16.5]} 39... Rxd3 {[%clk 0:00:46.8]} 40.
h5 {[%clk 0:01:11.9]} 40... Rd1+ {[%clk 0:00:45.8]} 0-1

[Event "Early-Titled-Tuesday-Blitz-November-28-2023"]
[Site "Chess.com"]
[Date "2023.11.28"]
[Round "4"]
[White "ContrVersia"]
[Black "SaqoChess_Twitch"]
[Result "0-1"]
[WhiteElo "2873"]
[BlackElo "2643"]
[TimeControl "180+1"]
[EndTime "8:37:51 PST"]
[Termination "SaqoChess_Twitch won on time"]

1. Nf3 {[%clk 0:03:00.9]} 1... d5 {[%clk 0:02:59.7]} 2. c4 {[%clk 0:03:01]} 2...
e6 {[%clk 0:03:00.1]} 3. b3 {[%clk 0:03:01]} 3... Nf6 {[%clk 0:03:00.8]} 4. g3
{[%clk 0:03:01.2]} 4... Be7 {[%clk 0:03:01.4]} 5. Bg2 {[%clk 0:03:01.5]} 5...
O-O {[%clk 0:03:02.1]} 6. O-O {[%clk 0:03:02]} 6... c5 {[%clk 0:03:02.8]} 7. Bb2
{[%clk 0:03:00.9]} 7... Nc6 {[%clk 0:03:03.2]} 8. e3 {[%clk 0:03:01.5]} 8... d4
{[%clk 0:03:03.6]} 9. exd4 {[%clk 0:03:02]} 9... cxd4 {[%clk 0:03:04.1]} 10. Re1
{[%clk 0:03:02.4]} 10... Bc5 {[%clk 0:03:01.1]} 11. Na3 {[%clk 0:02:59.8]} 11...
Re8 {[%clk 0:02:59.8]} 12. Ne5 {[%clk 0:02:55.4]} 12... Nxe5 {[%clk 0:02:56.3]}
13. Rxe5 {[%clk 0:02:55.6]} 13... Bd6 {[%clk 0:02:56]} 14. Re1 {[%clk
0:02:51.3]} 14... e5 {[%clk 0:02:55.9]} 15. Nc2 {[%clk 0:02:42.3]} 15... a5
{[%clk 0:02:53.9]} 16. d3 {[%clk 0:02:25.4]} 16... Rb8 {[%clk 0:02:48.8]} 17.
Qd2 {[%clk 0:02:22.6]} 17... b5 {[%clk 0:02:43.6]} 18. Ba3 {[%clk 0:02:14.7]}
18... b4 {[%clk 0:02:35.5]} 19. Bb2 {[%clk 0:02:14.8]} 19... Bc5 {[%clk
0:02:35.3]} 20. a3 {[%clk 0:02:12.8]} 20... bxa3 {[%clk 0:02:27.4]} 21. Bxa3
{[%clk 0:02:13.7]} 21... Nd7 {[%clk 0:02:26.4]} 22. Bxc5 {[%clk 0:01:18.8]}
22... Nxc5 {[%clk 0:02:26.4]} 23. Qxa5 {[%clk 0:01:19]} 23... Qxa5 {[%clk
0:02:14.9]} 24. Rxa5 {[%clk 0:01:18.5]} 24... Nxd3 {[%clk 0:02:15.1]} 25. Rb1
{[%clk 0:00:31.6]} 25... Bf5 {[%clk 0:02:14.5]} 26. Na1 {[%clk 0:00:28.1]} 26...
Nb4 {[%clk 0:02:02.8]} 27. Rd1 {[%clk 0:00:26]} 27... f6 {[%clk 0:01:38.5]} 28.
f3 {[%clk 0:00:20.4]} 28... Nc2 {[%clk 0:01:35.4]} 29. g4 {[%clk 0:00:10.9]}
29... Bg6 {[%clk 0:01:34.5]} 30. Rb5 {[%clk 0:00:03.6]} 30... Rxb5 {[%clk
0:01:26.9]} 31. cxb5 {[%clk 0:00:04.5]} 31... Ne3 {[%clk 0:01:26.1]} 32. Rc1
{[%clk 0:00:02.8]} 32... Rb8 {[%clk 0:01:26.7]} 33. Rc5 {[%clk 0:00:02]} 33...
Bd3 {[%clk 0:01:27.2]} 0-1

[Event "Early-Titled-Tuesday-Blitz-November-28-2023"]
[Site "Chess.com"]
[Date "2023.11.28"]
[Round "4"]
[White "becemix"]
[Black "viktorskliarov"]
[Result "1-0"]
[WhiteElo "2370"]
[BlackElo "2626"]
[TimeControl "180+1"]
[EndTime "8:37:51 PST"]
[Termination "becemix won by resignation"]

1. e4 {[%clk 0:03:00.9]} 1... c5 {[%clk 0:02:59.3]} 2. d4 {[%clk 0:03:00.5]}
2... cxd4 {[%clk 0:02:59.5]} 3. c3 {[%clk 0:03:01]} 3... d3 {[%clk 0:02:58]} 4.
Bxd3 {[%clk 0:03:00.5]} 4... g6 {[%clk 0:02:58]} 5. Nf3 {[%clk 0:03:00.5]} 5...
Bg7 {[%clk 0:02:58.4]} 6. O-O {[%clk 0:03:00.8]} 6... Nc6 {[%clk 0:02:58.7]} 7.
Bc4 {[%clk 0:03:00.8]} 7... d6 {[%clk 0:02:55.8]} 8. Qb3 {[%clk 0:03:00.7]} 8...
e6 {[%clk 0:02:45.5]} 9. Rd1 {[%clk 0:03:00]} 9... Qc7 {[%clk 0:02:22.1]} 10.
Na3 {[%clk 0:02:59.3]} 10... a6 {[%clk 0:02:20.4]} 11. Bf4 {[%clk 0:02:58.6]}
11... e5 {[%clk 0:02:05.3]} 12. Be3 {[%clk 0:02:58.5]} 12... Nf6 {[%clk
0:01:51.9]} 13. Bb6 {[%clk 0:02:41.1]} 13... Qe7 {[%clk 0:01:48.9]} 14. Re1
{[%clk 0:02:36]} 14... O-O {[%clk 0:01:43.1]} 15. Rad1 {[%clk 0:02:28.2]} 15...
Bg4 {[%clk 0:01:15.9]} 16. Rd3 {[%clk 0:02:27.4]} 16... Bxf3 {[%clk 0:01:12.4]}
17. Rxf3 {[%clk 0:02:26.8]} 17... Nd7 {[%clk 0:01:01.1]} 18. Nc2 {[%clk
0:02:24.5]} 18... Nxb6 {[%clk 0:00:42.1]} 19. Qxb6 {[%clk 0:02:25.4]} 19... Rac8
{[%clk 0:00:42.2]} 20. Ne3 {[%clk 0:02:24.8]} 20... Qd8 {[%clk 0:00:39.7]} 21.
Qxb7 {[%clk 0:02:15.9]} 21... Na5 {[%clk 0:00:32]} 22. Qxa6 {[%clk 0:02:16]}
22... Ra8 {[%clk 0:00:24.5]} 23. Qb5 {[%clk 0:02:07.5]} 23... Rb8 {[%clk
0:00:23.6]} 24. Qd5 {[%clk 0:02:06.8]} 24... Rxb2 {[%clk 0:00:23.4]} 25. Bb3
{[%clk 0:02:07.3]} 25... Nxb3 {[%clk 0:00:22.8]} 26. axb3 {[%clk 0:02:08.2]}
26... Qb6 {[%clk 0:00:21.4]} 27. Nc4 {[%clk 0:02:04.4]} 27... Qxb3 {[%clk
0:00:21.5]} 28. Nxb2 {[%clk 0:02:04.8]} 28... Qxb2 {[%clk 0:00:22.1]} 29. Qxd6
{[%clk 0:02:02.4]} 29... h5 {[%clk 0:00:22.1]} 30. Qb4 {[%clk 0:02:01]} 30...
Qc2 {[%clk 0:00:22.1]} 31. Qb1 {[%clk 0:01:59.9]} 31... Qa4 {[%clk 0:00:21.7]}
32. Qd3 {[%clk 0:01:52.9]} 32... Rc8 {[%clk 0:00:20.6]} 33. h4 {[%clk
0:01:52.1]} 33... Bh6 {[%clk 0:00:17.5]} 34. g3 {[%clk 0:01:52.2]} 34... Bf8
{[%clk 0:00:13.7]} 35. Rb1 {[%clk 0:01:48.6]} 35... Rc7 {[%clk 0:00:10.2]} 36.
Kg2 {[%clk 0:01:47.6]} 36... Kg7 {[%clk 0:00:10.1]} 37. Qd5 {[%clk 0:01:48]}
37... Qe8 {[%clk 0:00:08.3]} 38. Rb7 {[%clk 0:01:47.8]} 38... Rxb7 {[%clk
0:00:08]} 39. Qxb7 {[%clk 0:01:48.7]} 39... Kg8 {[%clk 0:00:07.8]} 40. c4 {[%clk
0:01:48.4]} 40... Qe6 {[%clk 0:00:08.1]} 41. Qd5 {[%clk 0:01:48.7]} 41... Qe7
{[%clk 0:00:08.6]} 42. c5 {[%clk 0:01:48.5]} 42... Qxc5 {[%clk 0:00:08.7]} 43.
Qxf7+ {[%clk 0:01:48.5]} 1-0

[Event "Early-Titled-Tuesday-Blitz-November-28-2023"]
[Site "Chess.com"]
[Date "2023.11.28"]
[Round "4"]
[White "Truequitos"]
[Black "talaicito"]
[Result "1-0"]
[WhiteElo "2491"]
[BlackElo "2214"]
[TimeControl "180+1"]
[EndTime "8:38:02 PST"]
[Termination "Truequitos won on time"]

1. d4 {[%clk 0:03:00.4]} 1... e6 {[%clk 0:02:59.7]} 2. Nf3 {[%clk 0:03:01.1]}
2... f5 {[%clk 0:03:00.2]} 3. g3 {[%clk 0:03:01.8]} 3... Nf6 {[%clk 0:03:00.7]}
4. Bg2 {[%clk 0:03:02.4]} 4... Be7 {[%clk 0:03:01.2]} 5. O-O {[%clk 0:03:03.3]}
5... O-O {[%clk 0:03:01.8]} 6. c4 {[%clk 0:03:04.2]} 6... d6 {[%clk 0:03:02.1]}
7. Nc3 {[%clk 0:03:05.1]} 7... a5 {[%clk 0:03:02.3]} 8. Bg5 {[%clk 0:03:05]}
8... Nbd7 {[%clk 0:02:46.3]} 9. Qd3 {[%clk 0:03:04.1]} 9... e5 {[%clk
0:02:21.2]} 10. dxe5 {[%clk 0:03:02.9]} 10... Nxe5 {[%clk 0:02:16.4]} 11. Nxe5
{[%clk 0:03:02.3]} 11... dxe5 {[%clk 0:02:15.9]} 12. Nd5 {[%clk 0:03:02]} 12...
Nxd5 {[%clk 0:02:12.4]} 13. Qxd5+ {[%clk 0:03:00.8]} 13... Kh8 {[%clk 0:02:05]}
14. Qxd8 {[%clk 0:02:46.2]} 14... Bxd8 {[%clk 0:02:02.8]} 15. Bxd8 {[%clk
0:02:47.1]} 15... Rxd8 {[%clk 0:02:01.5]} 16. Rfd1 {[%clk 0:02:48]} 16... Re8
{[%clk 0:01:48.5]} 17. Rd2 {[%clk 0:02:37.7]} 17... Kg8 {[%clk 0:01:41.1]} 18.
Rad1 {[%clk 0:02:37.6]} 18... Kf8 {[%clk 0:01:40]} 19. c5 {[%clk 0:02:33.4]}
19... c6 {[%clk 0:01:36.7]} 20. e4 {[%clk 0:02:11.8]} 20... g6 {[%clk
0:01:24.9]} 21. exf5 {[%clk 0:02:11.3]} 21... gxf5 {[%clk 0:01:25]} 22. Rd6
{[%clk 0:02:11]} 22... Be6 {[%clk 0:01:18.1]} 23. Bh3 {[%clk 0:02:03.2]} 23...
Ke7 {[%clk 0:01:06]} 24. Re1 {[%clk 0:02:03.5]} 24... Rad8 {[%clk 0:00:53.7]}
25. Rxe5 {[%clk 0:02:01]} 25... Rxd6 {[%clk 0:00:51.9]} 26. cxd6+ {[%clk
0:02:01.9]} 26... Kxd6 {[%clk 0:00:50.1]} 27. Rxa5 {[%clk 0:02:02.5]} 27... Re7
{[%clk 0:00:26.4]} 28. f4 {[%clk 0:01:52.2]} 28... b6 {[%clk 0:00:20.3]} 29. Ra3
{[%clk 0:01:50.4]} 29... Bd5 {[%clk 0:00:18.7]} 30. Kf2 {[%clk 0:01:49.2]} 30...
Be4 {[%clk 0:00:15.5]} 31. Re3 {[%clk 0:01:42.5]} 31... c5 {[%clk 0:00:12.5]}
32. Bxf5 {[%clk 0:01:42.1]} 32... Bxf5 {[%clk 0:00:11.5]} 33. Rb3 {[%clk
0:01:41.9]} 33... Kc6 {[%clk 0:00:11.3]} 34. Kf3 {[%clk 0:01:39.9]} 34... Be4+
{[%clk 0:00:10.7]} 35. Kg4 {[%clk 0:01:38.5]} 35... Bd5 {[%clk 0:00:08.5]} 36.
Rc3 {[%clk 0:01:37.6]} 36... b5 {[%clk 0:00:08.3]} 37. a3 {[%clk 0:01:31.5]}
37... Re2 {[%clk 0:00:04.5]} 38. b3 {[%clk 0:01:31.7]} 38... Rxh2 {[%clk
0:00:04.3]} 39. Kg5 {[%clk 0:01:32.2]} 39... Rg2 {[%clk 0:00:02.6]} 40. f5
{[%clk 0:01:30.8]} 1-0

[Event "Early-Titled-Tuesday-Blitz-November-28-2023"]
[Site "Chess.com"]
[Date "2023.11.28"]
[Round "4"]
[White "grandemestregringo"]
[Black "AndresDelgado77"]
[Result "1-0"]
[WhiteElo "2623"]
[BlackElo "2269"]
[TimeControl "180+1"]
[EndTime "8:38:07 PST"]
[Termination "grandemestregringo won by checkmate"]

1. f4 {[%clk 0:03:00.9]} 1... Nf6 {[%clk 0:02:56.3]} 2. Nf3 {[%clk 0:03:00.9]}
2... c5 {[%clk 0:02:53.1]} 3. e3 {[%clk 0:02:58.5]} 3... g6 {[%clk 0:02:50.3]}
4. c3 {[%clk 0:02:45.3]} 4... Bg7 {[%clk 0:02:43.9]} 5. d4 {[%clk 0:02:45.1]}
5... d6 {[%clk 0:02:43.7]} 6. Be2 {[%clk 0:02:44]} 6... O-O {[%clk 0:02:43.3]}
7. O-O {[%clk 0:02:44.4]} 7... Nc6 {[%clk 0:02:43.4]} 8. Na3 {[%clk 0:02:36.4]}
8... a6 {[%clk 0:02:39.2]} 9. d5 {[%clk 0:02:34.2]} 9... Nb8 {[%clk 0:02:28]}
10. c4 {[%clk 0:02:32.5]} 10... e6 {[%clk 0:02:21.5]} 11. Rb1 {[%clk 0:02:21.4]}
11... exd5 {[%clk 0:02:17.5]} 12. cxd5 {[%clk 0:02:21.4]} 12... Bf5 {[%clk
0:02:16.8]} 13. Bd3 {[%clk 0:02:18.4]} 13... Bxd3 {[%clk 0:02:04.7]} 14. Qxd3
{[%clk 0:02:18.3]} 14... b5 {[%clk 0:02:05]} 15. b4 {[%clk 0:02:18.4]} 15... c4
{[%clk 0:02:01.2]} 16. Qd1 {[%clk 0:02:12.6]} 16... Re8 {[%clk 0:01:57.6]} 17.
Nc2 {[%clk 0:02:10.7]} 17... Qb6 {[%clk 0:01:49.3]} 18. Bb2 {[%clk 0:02:09.6]}
18... Nbd7 {[%clk 0:01:43.6]} 19. Nfd4 {[%clk 0:01:38.2]} 19... Nxd5 {[%clk
0:01:40.1]} 20. Nf5 {[%clk 0:01:37.7]} 20... Bxb2 {[%clk 0:01:03]} 21. Qxd5
{[%clk 0:01:34.1]} 21... Bf6 {[%clk 0:00:33.7]} 22. Nxd6 {[%clk 0:01:25.7]}
22... Re7 {[%clk 0:00:33.2]} 23. Kh1 {[%clk 0:01:21.8]} 23... Rd8 {[%clk
0:00:28.4]} 24. e4 {[%clk 0:01:17.7]} 24... Nf8 {[%clk 0:00:21.4]} 25. e5 {[%clk
0:01:11.2]} 25... Kg7 {[%clk 0:00:20.6]} 26. Rbd1 {[%clk 0:01:07.9]} 26... Bh4
{[%clk 0:00:16.3]} 27. g3 {[%clk 0:01:05.7]} 27... f6 {[%clk 0:00:09.1]} 28.
gxh4 {[%clk 0:01:04.4]} 28... Ne6 {[%clk 0:00:07]} 29. exf6+ {[%clk 0:01:01.7]}
29... Kxf6 {[%clk 0:00:05.9]} 30. Qe5# {[%clk 0:01:02.1]} 1-0

[Event "Early-Titled-Tuesday-Blitz-November-28-2023"]
[Site "Chess.com"]
[Date "2023.11.28"]
[Round "4"]
[White "GatoRojo150"]
[Black "dropstoneDP"]
[Result "1/2-1/2"]
[WhiteElo "2614"]
[BlackElo "2956"]
[TimeControl "180+1"]
[EndTime "8:38:09 PST"]
[Termination "Game drawn by repetition"]

1. e4 {[%clk 0:03:00.9]} 1... e5 {[%clk 0:02:58.9]} 2. Nf3 {[%clk 0:03:00.5]}
2... Nf6 {[%clk 0:02:59.5]} 3. Nc3 {[%clk 0:02:48.4]} 3... Nc6 {[%clk
0:02:59.6]} 4. Bb5 {[%clk 0:02:47.8]} 4... Nd4 {[%clk 0:02:59.6]} 5. Bc4 {[%clk
0:02:47.3]} 5... Bc5 {[%clk 0:02:59.1]} 6. d3 {[%clk 0:02:47.3]} 6... d6 {[%clk
0:02:59.3]} 7. Na4 {[%clk 0:02:46]} 7... b5 {[%clk 0:02:58.9]} 8. Nxd4 {[%clk
0:02:43.9]} 8... bxc4 {[%clk 0:02:58.4]} 9. Nf5 {[%clk 0:02:44.2]} 9... Bxf5
{[%clk 0:02:57]} 10. exf5 {[%clk 0:02:45.1]} 10... cxd3 {[%clk 0:02:54.3]} 11.
Nxc5 {[%clk 0:02:44.5]} 11... dxc5 {[%clk 0:02:53.4]} 12. Qxd3 {[%clk
0:02:45.4]} 12... Qxd3 {[%clk 0:02:53.5]} 13. cxd3 {[%clk 0:02:46.3]} 13...
O-O-O {[%clk 0:02:54]} 14. Ke2 {[%clk 0:02:44.8]} 14... Rd6 {[%clk 0:02:51]} 15.
Be3 {[%clk 0:02:42]} 15... Nd5 {[%clk 0:02:48.3]} 16. Rac1 {[%clk 0:02:18.2]}
16... Rhd8 {[%clk 0:02:14.3]} 17. Rxc5 {[%clk 0:02:12.1]} 17... Nxe3 {[%clk
0:02:12.5]} 18. fxe3 {[%clk 0:02:07.7]} 18... Rxd3 {[%clk 0:02:13]} 19. Rhc1
{[%clk 0:01:50.7]} 19... Rd2+ {[%clk 0:02:12.9]} 20. Kf3 {[%clk 0:01:50.5]}
20... R8d7 {[%clk 0:02:08.8]} 21. R1c2 {[%clk 0:01:46.4]} 21... Rxc2 {[%clk
0:02:07.8]} 22. Rxc2 {[%clk 0:01:47.3]} 22... f6 {[%clk 0:02:05.9]} 23. Ke4
{[%clk 0:01:44.3]} 23... Kb7 {[%clk 0:02:04.2]} 24. g4 {[%clk 0:01:41.2]} 24...
h6 {[%clk 0:01:59.8]} 25. h4 {[%clk 0:01:40.2]} 25... Rd1 {[%clk 0:01:59.2]} 26.
g5 {[%clk 0:01:35.5]} 26... c6 {[%clk 0:01:24]} 27. Rg2 {[%clk 0:01:19.3]} 27...
Rh1 {[%clk 0:01:19.5]} 28. Rg4 {[%clk 0:00:46]} 28... h5 {[%clk 0:01:12.5]} 29.
gxf6 {[%clk 0:00:46.1]} 29... gxf6 {[%clk 0:01:13.1]} 30. Rg6 {[%clk 0:00:21.6]}
30... Rxh4+ {[%clk 0:01:13.3]} 31. Kf3 {[%clk 0:00:21.7]} 31... Rh3+ {[%clk
0:01:12.4]} 32. Ke4 {[%clk 0:00:21.1]} 32... Rh4+ {[%clk 0:01:12.2]} 33. Kf3
{[%clk 0:00:21.4]} 33... Rh3+ {[%clk 0:00:52.9]} 34. Ke4 {[%clk 0:00:21.5]}
34... Rh4+ {[%clk 0:00:53.5]} 1/2-1/2

[Event "Early-Titled-Tuesday-Blitz-November-28-2023"]
[Site "Chess.com"]
[Date "2023.11.28"]
[Round "4"]
[White "losersgame"]
[Black "nochewycandy"]
[Result "0-1"]
[WhiteElo "2543"]
[BlackElo "2778"]
[TimeControl "180+1"]
[EndTime "8:38:10 PST"]
[Termination "nochewycandy won on time"]

1. d4 {[%clk 0:02:47.9]} 1... Nf6 {[%clk 0:02:56.4]} 2. c4 {[%clk 0:02:47.6]}
2... a6 {[%clk 0:02:56.7]} 3. Nc3 {[%clk 0:02:46.3]} 3... c5 {[%clk 0:02:56.4]}
4. d5 {[%clk 0:02:40.6]} 4... b5 {[%clk 0:02:56.8]} 5. cxb5 {[%clk 0:02:40.6]}
5... axb5 {[%clk 0:02:57.4]} 6. Nxb5 {[%clk 0:02:40.6]} 6... d6 {[%clk
0:02:45.5]} 7. Nc3 {[%clk 0:02:38.2]} 7... g6 {[%clk 0:02:43.7]} 8. e4 {[%clk
0:02:35.2]} 8... Bg7 {[%clk 0:02:44.3]} 9. Bb5+ {[%clk 0:02:33.2]} 9... Bd7
{[%clk 0:02:41.7]} 10. Bxd7+ {[%clk 0:02:27.1]} 10... Nbxd7 {[%clk 0:02:39.3]}
11. Nf3 {[%clk 0:02:27.3]} 11... O-O {[%clk 0:02:39.7]} 12. O-O {[%clk
0:02:27.3]} 12... Qa5 {[%clk 0:02:40.3]} 13. a4 {[%clk 0:02:26.2]} 13... Rfb8
{[%clk 0:02:39.3]} 14. Ra3 {[%clk 0:02:14]} 14... Rb4 {[%clk 0:02:23.9]} 15. Re1
{[%clk 0:02:12]} 15... Ng4 {[%clk 0:02:22]} 16. Qc2 {[%clk 0:01:25.6]} 16...
Bxc3 {[%clk 0:02:11.6]} 17. Qxc3 {[%clk 0:01:17.7]} 17... Rxa4 {[%clk
0:02:11.6]} 18. Rxa4 {[%clk 0:01:15.5]} 18... Qxa4 {[%clk 0:02:11]} 19. h3
{[%clk 0:01:11.9]} 19... Ngf6 {[%clk 0:02:06.6]} 20. Bh6 {[%clk 0:01:09.9]}
20... Qa5 {[%clk 0:01:57.1]} 21. Qe3 {[%clk 0:01:00.3]} 21... Qb4 {[%clk
0:01:43.7]} 22. Re2 {[%clk 0:00:38.7]} 22... Ra4 {[%clk 0:01:15.9]} 23. Ng5
{[%clk 0:00:22.7]} 23... Ne5 {[%clk 0:01:09.3]} 24. Qf4 {[%clk 0:00:18.4]} 24...
Nxd5 {[%clk 0:00:57.3]} 25. Qh4 {[%clk 0:00:12.7]} 25... Nf6 {[%clk 0:00:56.4]}
26. f4 {[%clk 0:00:10.8]} 26... Nd3 {[%clk 0:00:47.9]} 27. e5 {[%clk 0:00:09.2]}
27... dxe5 {[%clk 0:00:48.8]} 0-1